bitfinex/quotes_SOLUSD_20220302
["timestamp","ask_amount","ask_price","bid_price","bid_amount"]
[1646184457637,2.79784841,97.626,97.52,15.3808]
[1646184457938,24.8194,97.64,97.531,0.41338175]
[1646184458136,2.79784841,97.631,97.53,12.15]
[1646184458335,4.099,97.63,97.51,12.15]
[1646184458537,57.11083064,97.606,97.51,12.15]
[1646184458735,4.1,97.605,97.51,27.5332]
[1646184458936,61.21083064,97.606,97.51,27.5332]
[1646184459136,57.11083064,97.606,97.511,2.57366348]
[1646184459640,57.11083064,97.606,97.53,15.3786]
[1646184460040,57.11083064,97.606,97.512,22.6777]
[1646184462038,57.11083064,97.606,97.52,15.3814]
[1646184462239,57.11083064,97.606,97.52,27.5314]
[1646184463039,102.5,97.605,97.52,12.15]
[1646184463240,1.43379613,97.604,97.49,12.15]
[1646184463540,4.1,97.603,97.473,2.57366348]
[1646184463739,1.28444128,97.602,97.487,5.0]
[1646184463945,1.4303362,97.588,97.461,22.8007]
[1646184464145,15.3928,97.56,97.461,22.8007]
[1646184464340,60.74719604,97.559,97.461,22.8007]
[1646184464740,0.43745647,97.558,97.461,22.8007]
[1646184467042,60.74719604,97.559,97.47,15.3891]
[1646184467243,60.74719604,97.559,97.48,12.15]
[1646184467842,60.74719604,97.559,97.481,2.57366348]
[1646184469041,46.3845,97.594,97.49,15.3855]
[1646184469241,5.0,97.602,97.49,15.3855]
[1646184469242,5.0,97.602,97.5,12.15]
[1646184469440,15.5087,97.626,97.501,0.54524596]
[1646184469641,15.5087,97.626,97.501,3.11890944]
[1646184470041,58.93399627,97.608,97.502,2.57366348]
[1646184470240,58.93399627,97.608,97.502,26.81466348]
[1646184470642,58.93399627,97.608,97.503,2.57366348]
[1646184471142,58.93399627,97.608,97.52,15.3802]
[1646184471345,58.93399627,97.608,97.52,27.5302]
[1646184472445,58.93399627,97.608,97.521,0.13537145]
[1646184472743,58.93399627,97.608,97.53,15.3793]
[1646184473843,58.93399627,97.608,97.53,27.5293]
[1646184475846,58.93399627,97.608,97.53,15.3793]
[1646184476748,58.93399627,97.608,97.51,63.4117]
[1646184477147,102.5,97.607,97.51,12.15]
[1646184477848,102.5,97.607,97.502,24.241]
[1646184478052,102.5,97.605,97.502,24.241]
[1646184478250,5.70822645,97.604,97.502,24.241]
[1646184478448,102.5,97.603,97.502,24.241]
[1646184478649,58.93399627,97.608,97.502,24.241]
[1646184478850,15.3853,97.6,97.51,15.3831]
[1646184479254,5.7082457,97.599,97.51,15.3831]
[1646184479455,108.2082457,97.599,97.51,15.3831]
[1646184479656,5.7082457,97.598,97.51,15.3831]
[1646184480055,5.7082457,97.599,97.51,15.3831]
[1646184481158,2.79784841,97.597,97.51,15.3831]
[1646184481360,8.50609411,97.606,97.511,2.57366348]
[1646184481560,5.7082457,97.607,97.511,2.57366348]
[1646184481760,5.7082457,97.607,97.53,15.3802]
[1646184483061,27.11574841,97.618,97.53,15.3802]
[1646184483460,24.3179,97.618,97.53,15.3802]
[1646184483663,27.11574841,97.618,97.53,15.3802]
[1646184484262,24.3179,97.618,97.53,15.3802]
[1646184484860,27.11574841,97.618,97.53,15.3802]
[1646184485060,2.79784841,97.616,97.53,15.3802]
[1646184485473,2.79784841,97.617,97.53,15.3802]
[1646184485670,2.79784841,97.618,97.53,27.5302]
[1646184485873,2.79784841,97.619,97.53,27.5302]
[1646184486070,2.79784841,97.63,97.532,0.16249439]
[1646184486270,2.79784841,97.632,97.55,15.3749]
[1646184486473,2.79784841,97.632,97.55,27.5249]
[1646184486870,2.79784841,97.633,97.55,27.5249]
[1646184487072,2.79784841,97.633,97.551,0.17421559]
[1646184487471,2.79784841,97.64,97.57,15.3736]
[1646184487672,2.79784841,97.641,97.57,15.3736]
[1646184487973,59.8958761,97.639,97.57,15.3736]
[1646184488173,5.7048405,97.638,97.57,15.3736]
[1646184488774,5.7048405,97.638,97.551,24.2671]
[1646184488974,2.79784841,97.635,97.551,24.2671]
[1646184489173,8.50268891,97.636,97.551,24.2671]
[1646184489378,5.7048405,97.636,97.56,12.15]
[1646184489575,59.8958761,97.639,97.56,12.15]
[1646184489974,59.8958761,97.639,97.56,15.3753]
[1646184490374,59.8958761,97.639,97.56,27.5253]
[1646184493379,59.8958761,97.639,97.56,12.15]
[1646184493582,105.17718366,97.638,97.541,23.5371]
[1646184493777,5.70619958,97.637,97.541,23.5371]
[1646184493978,102.85548356,97.636,97.541,23.5371]
[1646184494180,102.5,97.634,97.541,23.5371]
[1646184494379,102.5,97.632,97.541,23.5371]
[1646184494585,15.3795,97.63,97.541,23.5371]
[1646184494781,5.70619958,97.631,97.541,26.11076348]
[1646184494983,59.8958761,97.639,97.541,26.11076348]
[1646184495183,5.7059909,97.638,97.541,23.5371]
[1646184495385,2.79784841,97.628,97.54,12.15]
[1646184495588,2.79784841,97.628,97.52,12.15]
[1646184495786,0.12260486,97.624,97.51,12.15]
[1646184495983,102.5,97.623,97.51,12.15]
[1646184496187,102.5,97.621,97.51,12.15]
[1646184496383,105.29784841,97.619,97.51,12.15]
[1646184496583,102.5,97.617,97.51,12.15]
[1646184496783,306.05875681,98.205,97.51,12.15]
[1646184496784,102.5,97.609,97.51,27.5324]
[1646184496983,102.5,97.607,97.51,27.5324]
[1646184497183,61.31977128,97.608,97.51,27.5324]
[1646184497184,102.5,97.605,97.51,12.15]
[1646184497384,102.5,97.603,97.51,12.15]
[1646184497584,102.5,97.601,97.51,12.15]
[1646184497982,4.1,97.6,97.51,12.15]
[1646184498584,106.6,97.6,97.503,22.6572]
[1646184498985,102.5,97.598,97.48,12.15]
[1646184499186,102.5,97.598,97.47,12.15]
[1646184499187,0.10611744,97.594,97.47,12.15]
[1646184499386,2.79784841,97.587,97.47,12.15]
[1646184499585,2.79784841,97.585,97.47,12.15]
[1646184499786,2.79784841,97.583,97.47,12.15]
[1646184499987,106.601,97.582,97.47,12.15]
[1646184500187,102.5,97.579,97.48,15.3865]
[1646184500386,102.5,97.576,97.48,15.3865]
[1646184500987,2.48487424,97.575,97.48,15.3865]
[1646184501391,4.101,97.574,97.48,15.3865]
[1646184501787,2.48487424,97.573,97.48,15.3865]
[1646184502189,102.5,97.569,97.48,15.3865]
[1646184503789,15.3883,97.57,97.48,15.3865]
[1646184503996,54.36781167,97.577,97.481,2.57366348]
[1646184504190,54.36781167,97.577,97.51,15.3807]
[1646184504391,54.36781167,97.577,97.511,0.21305707]
[1646184504990,54.36781167,97.577,97.511,2.78672055]
[1646184505592,54.36781167,97.577,97.511,2.57366348]
[1646184506193,22.6351,97.614,97.52,15.3802]
[1646184506495,22.6351,97.614,97.52,27.5302]
[1646184507295,45.88560633,97.613,97.52,27.5302]
[1646184508296,2.48487424,97.612,97.52,27.5302]
[1646184508697,45.88560633,97.613,97.52,27.5302]
[1646184508898,45.88560633,97.613,97.52,35.7802]
[1646184510197,45.88560633,97.613,97.52,27.5302]
[1646184511701,45.88560633,97.613,97.521,4.099]
[1646184511899,45.88560633,97.613,97.54,15.3784]
[1646184515405,10.47228732,97.612,97.54,15.3784]
[1646184517005,45.88560633,97.613,97.541,0.24930923]
[1646184517205,22.5083,97.653,97.56,15.374]
[1646184517206,6.89684841,97.649,97.56,15.374]
[1646184517405,20.07934594,97.652,97.561,0.24930923]
[1646184517805,10.49149392,97.642,97.561,0.24930923]
[1646184518005,10.49149392,97.642,97.55,12.15]
[1646184518206,47.19049684,97.641,97.55,12.15]
[1646184518606,10.49149392,97.64,97.57,15.3738]
[1646184520607,47.19049684,97.641,97.57,15.3738]
[1646184523509,12.96973156,97.64,97.542,46.4195]
[1646184523808,0.16969249,97.638,97.542,46.4195]
[1646184524410,102.5,97.636,97.542,46.4195]
[1646184524809,102.5,97.634,97.542,46.4195]
[1646184525010,102.5,97.629,97.542,46.4195]
[1646184525613,102.5,97.627,97.542,46.4195]
[1646184526010,102.5,97.625,97.542,46.4195]
[1646184527011,102.5,97.619,97.542,46.4195]
[1646184527213,102.5,97.619,97.51,12.15]
[1646184527411,102.5,97.617,97.511,46.3937]
[1646184527810,49.94889927,97.609,97.511,46.3937]
[1646184528011,102.5,97.608,97.52,15.3807]
[1646184528210,10.50299396,97.608,97.52,15.3807]
[1646184528611,49.94889927,97.609,97.52,15.3807]
[1646184529313,49.94889927,97.609,97.521,2.57366348]
[1646184529513,49.94889927,97.609,97.53,15.3792]
[1646184530615,102.5,97.608,97.53,15.3792]
[1646184531016,49.94889927,97.609,97.53,15.3792]
[1646184531917,10.4924331,97.608,97.53,15.3792]
[1646184532519,112.9924331,97.608,97.521,2.57366348]
[1646184532917,10.4924331,97.608,97.521,2.57366348]
[1646184533120,10.4924331,97.607,97.521,2.57366348]
[1646184533518,112.9924331,97.608,97.521,2.57366348]
[1646184533726,2.47862723,97.606,97.511,46.3937]
[1646184533923,2.79784841,97.596,97.466,4.1]
[1646184534138,26.45592723,97.606,97.46,12.15]
[1646184534139,2.79784841,97.591,97.46,12.15]
[1646184534337,2.79784841,97.582,97.463,2.57366348]
[1646184534542,6.89884841,97.581,97.464,22.7438]
[1646184534740,102.5,97.578,97.464,22.7438]
[1646184534939,5.70866888,97.577,97.464,22.7438]
[1646184535136,102.5,97.576,97.464,22.7438]
[1646184535338,41.73242921,97.577,97.47,15.3884]
[1646184535638,23.0527,97.577,97.48,12.15]
[1646184535838,23.0527,97.577,97.481,4.101]
[1646184536043,23.0527,97.577,97.481,30.10266348]
[1646184536339,102.5,97.576,97.481,30.10266348]
[1646184536638,102.5,97.576,97.481,26.00166348]
[1646184537840,102.5,97.576,97.482,4.101]
[1646184538842,102.5,97.576,97.481,30.10266348]
[1646184539641,102.5,97.576,97.481,26.00166348]
[1646184540045,102.5,97.569,97.481,26.00166348]
[1646184541944,106.601,97.569,97.481,26.00166348]
[1646184542744,106.601,97.569,97.481,23.428]
[1646184543041,15.3894,97.56,97.481,23.428]
[1646184543242,106.601,97.559,97.481,23.428]
[1646184543444,109.07954778,97.559,97.481,23.428]
[1646184543643,2.47854778,97.558,97.481,23.428]
[1646184543843,5.0,97.547,97.44,12.15]
[1646184544043,102.5,97.544,97.441,23.217]
[1646184544245,0.13872563,97.542,97.441,23.217]
[1646184544645,102.63872563,97.542,97.441,23.217]
[1646184544845,4.102,97.541,97.441,23.217]
[1646184545046,4.102,97.541,97.44,15.3933]
[1646184545047,102.5,97.539,97.44,15.3933]
[1646184545250,4.102,97.541,97.363,15.4308]
[1646184545251,12.15,97.53,97.363,15.4308]
[1646184545549,12.15,97.53,97.314,15.3277]
[1646184545550,1.33938861,97.526,97.364,4.103]
[1646184545748,1.2313628,97.523,97.364,4.103]
[1646184545946,102.5,97.524,97.364,4.103]
[1646184545947,158.93894264,97.509,97.364,4.103]
[1646184546147,1.52236468,97.498,97.364,4.103]
[1646184546347,0.43745647,97.497,97.37,15.4045]
[1646184546847,0.43745647,97.495,97.37,15.4045]
[1646184547047,5.0,97.469,97.37,15.4045]
[1646184547247,102.5,97.467,97.37,15.4045]
[1646184547447,0.43745647,97.466,97.37,15.4045]
[1646184547751,0.43745647,97.466,97.364,4.103]
[1646184547947,0.43745647,97.464,97.364,4.103]
[1646184548150,102.5,97.459,97.364,4.103]
[1646184548348,12.15,97.46,97.364,4.103]
[1646184548349,102.5,97.449,97.364,4.103]
[1646184548549,52.90661673,97.448,97.364,4.103]
[1646184548752,0.43745647,97.447,97.364,4.103]
[1646184548951,102.93745647,97.447,97.364,4.103]
[1646184549555,102.5,97.439,97.364,4.103]
[1646184550356,5.0,97.437,97.364,4.103]
[1646184550954,102.5,97.438,97.364,4.103]
[1646184551155,102.5,97.438,97.32,12.15]
[1646184551355,5.0,97.432,97.32,12.15]
[1646184551553,102.5,97.43,97.32,12.15]
[1646184551754,4.107,97.429,97.32,12.15]
[1646184551953,102.5,97.428,97.32,12.15]
[1646184552153,4.107,97.427,97.32,12.15]
[1646184552358,4.107,97.427,97.311,47.1265]
[1646184552653,102.5,97.419,97.311,47.1265]
[1646184552856,4.108,97.418,97.311,47.1265]
[1646184553055,102.61018595,97.417,97.311,47.1265]
[1646184553255,5.0,97.409,97.311,47.1265]
[1646184553854,2.51122923,97.408,97.311,47.1265]
[1646184554655,5.0,97.402,97.273,5.0]
[1646184554955,102.5,97.399,97.273,5.0]
[1646184555157,102.5,97.389,97.28,15.4181]
[1646184555359,150.0944,97.389,97.28,15.4181]
[1646184555557,2.51122923,97.388,97.28,15.4181]
[1646184555956,102.5,97.38,97.28,15.4181]
[1646184556358,2.51122923,97.379,97.263,46.0421]
[1646184556557,5.0,97.374,97.263,46.0421]
[1646184556857,102.5,97.372,97.263,46.0421]
[1646184557157,107.5,97.369,97.263,46.0421]
[1646184557356,4.11,97.368,97.263,46.0421]
[1646184557556,102.5,97.367,97.263,46.0421]
[1646184557756,102.5,97.364,97.24,12.15]
[1646184557959,102.5,97.359,97.24,15.4248]
[1646184558157,4.11,97.358,97.24,15.4248]
[1646184558360,102.5,97.357,97.24,15.4248]
[1646184558557,1.44689064,97.354,97.235,5.0]
[1646184558758,1.44689064,97.354,97.217,47.4874]
[1646184558759,102.5,97.339,97.217,47.4874]
[1646184558956,43.07370101,97.337,97.217,47.4874]
[1646184559556,2.51122923,97.336,97.217,47.4874]
[1646184559761,2.51122923,97.336,97.218,5.0]
[1646184559762,105.01122923,97.336,97.218,5.0]
[1646184559958,2.51122923,97.336,97.218,5.0]
[1646184560158,2.51122923,97.335,97.22,15.4279]
[1646184561260,42.93227286,97.337,97.22,15.4279]
[1646184561459,42.93227286,97.337,97.25,15.4221]
[1646184564762,102.5,97.336,97.25,15.4221]
[1646184567165,42.93227286,97.337,97.25,15.4221]
[1646184567365,42.93227286,97.337,97.251,0.26012067]
[1646184567789,42.93227286,97.337,97.27,15.421]
[1646184567969,12.15,97.37,97.271,0.26012067]
[1646184568465,102.5,97.369,97.271,0.26012067]
[1646184568668,102.5,97.367,97.25,12.15]
[1646184568869,53.10845386,97.356,97.25,12.15]
[1646184569268,53.10845386,97.356,97.251,23.1289]
[1646184569468,102.5,97.355,97.251,23.1289]
[1646184569668,102.5,97.355,97.255,5.0]
[1646184570067,102.5,97.355,97.28,15.4185]
[1646184570269,53.10845386,97.356,97.255,5.0]
[1646184570471,75.82555386,97.356,97.255,5.0]
[1646184571169,75.82555386,97.356,97.251,23.1289]
[1646184571370,75.82555386,97.356,97.255,5.0]
[1646184572070,75.82555386,97.356,97.26,15.4214]
[1646184572271,53.10845386,97.356,97.271,103.03615892]
[1646184572470,53.10845386,97.356,97.27,12.15]
[1646184572471,53.10845386,97.356,97.283,0.54524596]
[1646184572672,47.5151,97.394,97.29,12.15]
[1646184572872,47.5151,97.394,97.291,0.54524596]
[1646184573071,47.5151,97.394,97.31,15.4136]
[1646184573673,46.20151371,97.393,97.31,15.4136]
[1646184575072,4.108,97.41,97.312,2.035371]
[1646184575297,4.108,97.42,97.34,15.407]
[1646184575474,150.2186,97.449,97.341,0.54357374]
[1646184575475,102.5,97.445,97.341,0.54357374]
[1646184575673,4.107,97.444,97.341,0.54357374]
[1646184576075,102.5,97.442,97.34,12.15]
[1646184576274,1.2745316,97.439,97.32,12.15]
[1646184576474,4.107,97.438,97.3,12.15]
[1646184576681,102.5,97.437,97.3,12.15]
[1646184576875,49.24183007,97.421,97.3,12.15]
[1646184577075,1.4920538,97.419,97.3,12.15]
[1646184577275,4.108,97.418,97.3,12.15]
[1646184577476,155.83672923,97.42,97.31,15.4148]
[1646184577675,2.51122923,97.417,97.31,15.4148]
[1646184578276,102.5,97.415,97.31,15.4148]
[1646184578577,4.108,97.414,97.31,15.4148]
[1646184578776,102.5,97.413,97.31,27.5648]
[1646184578976,4.108,97.412,97.31,27.5648]
[1646184579174,102.5,97.411,97.31,27.5648]
[1646184579374,4.108,97.41,97.31,27.5648]
[1646184579574,105.01122923,97.411,97.31,27.5648]
[1646184579775,2.51122923,97.409,97.31,27.5648]
[1646184579975,23.8407,97.408,97.31,27.5648]
[1646184580176,102.5,97.405,97.31,12.15]
[1646184580377,4.108,97.404,97.303,47.5066]
[1646184580577,102.5,97.403,97.303,47.5066]
[1646184580777,4.108,97.402,97.303,47.5066]
[1646184581477,4.108,97.402,97.31,15.4148]
[1646184581676,2.51122923,97.403,97.31,15.4148]
[1646184581876,55.20306318,97.406,97.31,15.4148]
[1646184582076,55.20306318,97.406,97.31,27.5648]
[1646184582476,55.20306318,97.406,97.311,2.57366348]
[1646184582676,55.20306318,97.406,97.33,15.4113]
[1646184585778,55.20306318,97.406,97.331,0.26829242]
[1646184586179,55.20306318,97.406,97.35,15.4079]
[1646184586886,24.1029,97.445,97.35,15.4079]
[1646184587085,24.1029,97.445,97.351,0.19190306]
[1646184587285,24.1029,97.445,97.37,15.4051]
[1646184587486,24.1029,97.445,97.37,20.9851]
[1646184587885,45.61487672,97.444,97.37,20.9851]
[1646184588586,45.61487672,97.444,97.37,15.4051]
[1646184589087,2.51122923,97.443,97.351,46.6026]
[1646184590307,45.61487672,97.444,97.351,46.6026]
[1646184590713,45.61487672,97.444,97.36,15.4066]
[1646184593719,45.61487672,97.444,97.36,27.5566]
[1646184593916,24.1029,97.445,97.36,27.5566]
[1646184594118,5.0,97.479,97.361,2.83512399]
[1646184594324,5.0,97.479,97.39,15.3991]
[1646184594521,5.0,97.479,97.39,24.0291]
[1646184594918,46.43212614,97.478,97.39,24.0291]
[1646184595520,46.43212614,97.478,97.391,2.57366348]
[1646184595920,46.43212614,97.478,97.41,15.3978]
[1646184596221,46.43212614,97.478,97.41,21.5078]
[1646184596622,46.43212614,97.478,97.41,15.3978]
[1646184599325,23.955,97.535,97.411,0.36046147]
[1646184599523,112.9,97.522,97.421,0.40013742]
[1646184599723,5.0,97.527,97.431,0.40013742]
[1646184599924,5.0,97.527,97.431,102.90013742]
[1646184600124,5.0,97.527,97.431,109.56013742]
[1646184600423,47.27690072,97.529,97.433,0.40013742]
[1646184600824,47.27690072,97.529,97.435,0.40013742]
[1646184601024,47.27690072,97.529,97.451,0.40013742]
[1646184601224,47.27690072,97.529,97.45,12.15]
[1646184601828,149.77690072,97.529,97.45,12.15]
[1646184602027,149.77690072,97.529,97.432,46.7737]
[1646184602426,149.77690072,97.529,97.44,15.3932]
[1646184602727,2.51126376,97.528,97.44,15.3932]
[1646184603128,2.51126376,97.528,97.432,46.7737]
[1646184603329,102.5,97.526,97.432,46.7737]
[1646184603531,102.5,97.519,97.432,46.7737]
[1646184603729,4.103,97.518,97.432,46.7737]
[1646184603930,102.5,97.517,97.432,46.7737]
[1646184604131,4.103,97.516,97.432,46.7737]
[1646184604531,102.5,97.515,97.432,46.7737]
[1646184604731,102.5,97.512,97.432,46.7737]
[1646184605136,58.75697327,97.513,97.432,46.7737]
[1646184607136,58.75697327,97.513,97.44,15.3942]
[1646184612255,102.5,97.512,97.432,46.7737]
[1646184612455,58.75697327,97.513,97.432,46.7737]
[1646184612656,2.51126376,97.511,97.39,63.4765]
[1646184612856,0.17029114,97.51,97.394,47.7366]
[1646184613055,102.5,97.509,97.394,47.7366]
[1646184613255,105.01126376,97.509,97.394,47.7366]
[1646184613455,102.5,97.507,97.394,47.7366]
[1646184613755,23.3102,97.508,97.394,47.7366]
[1646184613956,23.3102,97.508,97.41,15.398]
[1646184614156,23.3102,97.508,97.41,27.548]
[1646184614756,23.3102,97.508,97.411,22.5313]
[1646184614957,23.3102,97.508,97.411,25.10496348]
[1646184615157,23.3102,97.508,97.412,2.57366348]
[1646184616056,23.3102,97.508,97.43,15.3956]
[1646184616862,1.37536994,97.538,97.43,15.3956]
[1646184617065,1.37536994,97.538,97.43,30.11926348]
[1646184617262,46.51784307,97.537,97.43,30.11926348]
[1646184617663,23.6299,97.536,97.431,49.0348]
[1646184617863,23.6299,97.536,97.45,15.3916]
[1646184618466,23.6299,97.536,97.45,21.8116]
[1646184619063,1.37536994,97.548,97.45,24.38526348]
[1646184619265,1.37536994,97.548,97.451,126.3589]
[1646184619469,26.10316994,97.557,97.47,15.386]
[1646184619671,26.10316994,97.557,97.47,35.096]
[1646184619869,1.37536994,97.558,97.472,2.21978011]
[1646184620070,1.37536994,97.568,97.475,0.28511672]
[1646184620271,1.37536994,97.569,97.475,0.28511672]
[1646184620475,1.37536994,97.573,97.476,2.57366348]
[1646184620671,1.37536994,97.574,97.49,12.15]
[1646184620872,1.37536994,97.575,97.51,15.3818]
[1646184621073,5.0,97.579,97.51,24.1718]
[1646184621272,23.5812,97.589,97.51,36.3218]
[1646184621675,1.37536994,97.594,97.512,0.13483047]
[1646184622073,1.37536994,97.601,97.514,0.16222468]
[1646184622474,1.37536994,97.601,97.531,102.68940156]
[1646184622676,47.5634,97.658,97.542,0.32973226]
[1646184622677,1.37536994,97.624,97.542,0.32973226]
[1646184622973,1.37536994,97.626,97.543,4.099]
[1646184623174,1.37536994,97.64,97.543,4.099]
[1646184623373,51.28827936,97.625,97.54,12.15]
[1646184625476,51.28827936,97.625,97.54,27.5271]
[1646184629381,51.28827936,97.625,97.533,22.6809]
[1646184629585,1.71277697,97.624,97.51,12.15]
[1646184629782,1.33944605,97.622,97.502,4.099]
[1646184629986,1.78717025,97.619,97.503,23.1068]
[1646184630187,0.27086123,97.617,97.504,4.099]
[1646184630384,102.5,97.599,97.48,4.1]
[1646184630584,103.9694074,97.596,97.48,19.4866]
[1646184630783,0.27086123,97.594,97.48,15.3866]
[1646184631187,102.77086123,97.594,97.48,15.3866]
[1646184631388,105.28867816,97.594,97.48,15.3866]
[1646184631988,5.0,97.584,97.48,15.3866]
[1646184632188,102.5,97.577,97.48,15.3866]
[1646184633190,106.601,97.577,97.48,15.3866]
[1646184633788,15.3885,97.57,97.48,15.3866]
[1646184633990,106.601,97.577,97.471,47.5353]
[1646184633991,102.5,97.569,97.471,47.5353]
[1646184634190,102.5,97.567,97.471,47.5353]
[1646184634392,0.11334737,97.565,97.471,47.5353]
[1646184634587,1.51328477,97.568,97.462,4.101]
[1646184634588,102.5,97.562,97.462,4.101]
[1646184634788,0.17690409,97.558,97.462,4.101]
[1646184634988,44.17015565,97.528,97.462,4.101]
[1646184635191,102.5,97.527,97.462,4.101]
[1646184635414,0.17690409,97.526,97.462,4.101]
[1646184635609,0.17690409,97.526,97.42,15.396]
[1646184635809,0.17690409,97.523,97.39,12.15]
[1646184636009,102.5,97.519,97.397,2.57366348]
[1646184636207,102.5,97.499,97.4,15.3994]
[1646184636408,102.5,97.497,97.4,15.3994]
[1646184640511,55.15512505,97.498,97.4,15.3994]
[1646184640709,5.0,97.494,97.4,15.3994]
[1646184640909,55.15512505,97.498,97.4,15.3994]
[1646184641109,106.604,97.497,97.4,15.3994]
[1646184641310,5.0,97.492,97.4,15.3994]
[1646184641511,55.15512505,97.498,97.402,0.19360055]
[1646184641710,55.15512505,97.498,97.43,15.3944]
[1646184643018,55.15512505,97.498,97.41,15.398]
[1646184643215,4.104,97.497,97.41,15.398]
[1646184643416,106.604,97.497,97.41,15.398]
[1646184644219,55.15512505,97.498,97.41,15.398]
[1646184645118,70.92392505,97.498,97.41,15.398]
[1646184645520,55.15512505,97.498,97.41,15.398]
[1646184645918,102.5,97.497,97.41,15.398]
[1646184646119,102.5,97.497,97.377,23.95097226]
[1646184646120,102.5,97.489,97.388,2.57366348]
[1646184646320,5.53521791,97.488,97.388,2.57366348]
[1646184646519,5.53521791,97.488,97.352,23.5119]
[1646184646520,1.52133564,97.486,97.352,23.5119]
[1646184646719,4.105,97.485,97.343,5.0]
[1646184647019,57.55018716,97.468,97.33,12.15]
[1646184647219,45.82829561,97.448,97.35,15.4075]
[1646184647419,24.3756,97.467,97.35,27.5575]
[1646184647824,24.3756,97.467,97.351,19.70547768]
[1646184648222,24.3756,97.467,97.352,22.7746]
[1646184648421,50.12007687,97.466,97.354,1.96897578]
[1646184648921,50.12007687,97.466,97.357,2.22857057]
[1646184649123,50.12007687,97.466,97.38,15.4006]
[1646184649322,2.51781693,97.465,97.38,15.4006]
[1646184649724,4.105,97.499,97.381,102.5]
[1646184649921,4.105,97.527,97.391,102.5]
[1646184650122,24.8124,97.526,97.391,24.15940814]
[1646184650324,106.604,97.525,97.391,24.15940814]
[1646184650730,5.0,97.514,97.391,23.7005]
[1646184650929,15.3981,97.5,97.41,15.3967]
[1646184651232,162.77613665,97.499,97.41,15.3967]
[1646184651434,4.104,97.498,97.391,23.7005]
[1646184651633,102.5,97.496,97.391,23.7005]
[1646184651828,4.104,97.495,97.391,23.7005]
[1646184652230,2.51781693,97.494,97.391,23.7005]
[1646184652429,4.104,97.493,97.391,23.7005]
[1646184652836,5.0,97.484,97.4,15.4005]
[1646184653030,47.43542196,97.483,97.4,15.4005]
[1646184653837,15.4011,97.48,97.4,15.4005]
[1646184654634,102.5,97.479,97.4,15.4005]
[1646184655736,102.5,97.469,97.391,23.7005]
[1646184655941,51.78335266,97.468,97.391,23.7005]
[1646184656143,102.5,97.467,97.35,12.15]
[1646184656437,0.29814669,97.464,97.327,48.1042]
[1646184656644,0.30335587,97.458,97.34,15.409]
[1646184656941,52.89059228,97.448,97.34,15.409]
[1646184657139,76.84419228,97.448,97.34,15.409]
[1646184657339,76.54083641,97.448,97.341,2.57366348]
[1646184657942,76.54083641,97.448,97.36,15.4059]
[1646184660142,102.5,97.447,97.36,15.4059]
[1646184660350,102.5,97.439,97.342,22.6942]
[1646184660751,0.12623835,97.438,97.342,22.6942]
[1646184660944,2.64405528,97.438,97.342,22.6942]
[1646184661344,2.51781693,97.437,97.342,22.6942]
[1646184661769,15.4086,97.43,97.35,15.4083]
[1646184661971,53.22250992,97.429,97.35,15.4083]
[1646184662368,155.72250992,97.429,97.35,15.4083]
[1646184662565,53.22250992,97.429,97.35,15.4083]
[1646184664968,155.72250992,97.429,97.35,15.4083]
[1646184665171,15.4102,97.42,97.35,15.4083]
[1646184665374,15.4102,97.42,97.342,22.6942]
[1646184666171,102.5,97.419,97.342,22.6942]
[1646184666972,107.5,97.419,97.342,22.6942]
[1646184667173,48.96795572,97.408,97.342,22.6942]